Workbook

Sheet Captor Face Velocity
B1: Face Velocity Calculator
B5: USE This version to calculate HOOD ENTRY VELOCITY Requirements
B8: Captor Distance Required | F8: 131 | G8: mm | H8: <-- Enter Value
F10: Rectangle | H10: <-- Select Hood Shape
F11: 350 | G11: =IF(F10="Circle","mm","") ->  | H11: =IF(F10="","",IF(F10="Circle","<-- Enter Diameter","")) -> 
C13: =IF(F10="Circle","",IF(F10="Oval","Enter Largest Dimension",IF(F10="Square","Enter Dimension of Side",IF(F10="Rectangle","Enter Longest Side")))) -> Enter Longest Side | F13: 185 | G13: =IF(F10="","",IF(F10="Circle","","mm")) -> mm | H13: =IF(F10="","",IF(F10="Circle","","<-- Enter Value")) -> <-- Enter Value | J13: Fletcher's Original Equations
C14: =IF(F10="Circle","",IF(F10="Oval","Enter Small Dimension",IF(F10="Square","",IF(F10="Rectangle","Enter Short Dimension")))) -> Enter Short Dimension | F14: 165 | G14: =IF(F10="","",IF(F10="Circle","","mm")) -> mm | H14: =IF(F10="","",IF(F10="Circle","","<-- Enter Value")) -> <-- Enter Value
C16: Circle Area | F16: =((PI()*((F11/1000)^2))/4) -> 0.09621127502 | G16: m2
C17: Oval Area | F17: =(PI()*(F13/1000)*(F14/1000))/4 -> 0.02397427894 | G17: m2
C18: Square Area | F18: =(F13/1000)^2 -> 0.034225 | G18: m2
C19: Rectangle Area | F19: =(F13/1000)*(F14/1000) -> 0.030525 | G19: m2 | J19: Rectangle
J21: Where:-
C22: Hood Area | F22: =IF(F10="Circle",F16,IF(F10="Oval",F17,IF(F10="Square",F18,IF(F10="Rectangle",F19,)))) -> 0.030525 | G22: m2 | J22: VH = Required Captor Hood Entry Velocity
J23: VC - Selected Captor Velocity for contaminant
C24: Fletcher Value for β | F24: =IFERROR((0.2*(((F8/1000)/(SQRT(F22)))^(-1/3))),"") -> 0.2201483877
C25: Aspect Ratio | F25: =IFERROR(IF(OR(F10="Circle",F10="Square"),"1",F14/F13),"") -> 0.8918918919 | J25: NOTE: A (free) phone App version can be downloaded from
C26: Fletcher Value for α | F26: =IFERROR(((F8/1000)/(SQRT(F22)))*(F25^-F24),"") -> 0.7689217486 | J26: your APP Store - search for "OXYL8"
C28: Captor Velocity Required | F28: 0.5 | G28: m/s | H28: <-- Enter a Value
H29: see table below:
B31: Min Hood Entry Velocity Required | F31: =IFERROR((F28)*(0.93+((8.58)*(F26^2))),"") -> 3.001422412 | G31: m/s | H31: INVALID!
B32: Hood Flowrate Required | F32: =IFERROR(F22*F31,"") -> 0.09161841914 | G32: m3/s
B46: Use Upper End of the above ranges where ANY of the following apply:-
B54: Disclaimer
B55: This is a teaching aid. We do believe it to be reasonably accurate and faithful to Fletcher's Equations - but DO BEWARE if being used in 'live' situations that there could be anomalies we have not yet detected :-)
B59: https://oxyl8.com | G59: © OXYL8 2022 v22.1

Sheet Captor Distance
D1: Captor Distance Calculator
N2: 2
D3: USE This version to calculate:- Effective Captor Distance from a Face Velocity
D7: To Use: If any box in table below is shaded WHITE
D8: then you need to select an option or add in a value
D10: Select Process/Operation: | G10: 1
D12: Select Conditions: | G12: toxic materials/substances? | N12: 1
G13: high or continuous usage? | N13: 1
G14: a small captor hood? | N14: 1
G15: airflows away from the hood? | N15: 1
G16: draughts or air disturbances? | L16: Fletcher's original Equations (below) | M16: 2 | N16: 2 | O16: 2 | P16: 2
N17: 1
I18: Capture Velocity required: | J18: =VLOOKUP(N16,VcLookup,IF(N24>1,5,4)) -> 0.5 | K18: m/s | M18: 1 | N18: 1 | O18: 1 | P18: 1
M19: 1 | N19: 1 | O19: 1 | P19: 1
D20: Select Captor Hood Shape: | M20: 1 | N20: 1 | O20: 1 | P20: 1
M21: 1 | N21: 1 | O21: 1 | P21: 1
I22: =IF(N26=1,"Captor Hood Diameter:","Captor Hood Length:") -> Captor Hood Length: | J22: 0.185 | M22: 1 | N22: 1 | O22: 1 | P22: 1
I23: =IF(MOD(N26,2)>=1,"","Captor Hood Width:") -> Captor Hood Width: | J23: 0.165 | N23: 1
N24: =MAX(N18:N22) -> 1
I25: Captor Hood Area: | J25: =VLOOKUP(N26,HoodLookup,3,FALSE) -> 0.02397427894 | L25: Note: A (free) phone App version of this spreadsheet can be | N25: 4
I26: Aspect Ratio: | J26: =IF(MOD(N26,2)=0,MIN(J22:J23)/MAX(J22:J23),1) -> 0.8918918919 | L26: downloaded from your App Store. Search for "OXYL8" | M26: 1 | N26: 2 | O26: 2 | P26: 2
D29: ENTER Hood Entry Velocity Measured: | J29: 7.4 | K29: m/s
I30: Hood Entry Flowrate: | J30: =C_FaceVelocity*C_HoodArea -> 0.1774096641 | K30: m3/s
D33: Max Effective Capture Distance: | J33: =C_MaxEffectiveCapture -> 193
D36: At Commissioning or TExT use the above distance to put on label attached to hood
D37: AND - DO CHECK by smoke release that hood controls to AT LEAST that distance
D38: Labels available from https://levshop.co.uk
D40: Disclaimer
D41: This is a teaching aid. We do believe it to be accurate and faithful to Fletcher's Equations - but DO BEWARE if being used in 'live' situations that there could be anomalies we have not yet detected :-)
D45: https://oxyl8.com | I45: © OXYL8 2022 v22.1

Sheet DataTable (hidden)
A1: ID | B1: Contaminant release | C1: Process Example | D1: Capture Velocity | G1: ID | H1: Captor Hood Shape | I1: Captor Hood Area | K1: Haz Substance?
A2: 1 | B2: Into still air with little or no energy | C2: Evaporation, mist from electroplating tanks | D2: 0.25 | E2: 0.5 | G2: 1 | H2: Circle | I2: =PI()*C_HD1/2*C_HD1/2 -> 0.02688025214 | K2: No
A3: 2 | B3: Into fairly still air with low energy | C3: Welding, soldering, liquid transfer | D3: 0.5 | E3: 1 | G3: 2 | H3: Oval | I3: =PI()*C_HD1/2*C_HD2/2 -> 0.02397427894 | K3: Yes
A4: 3 | B4: Into moving air with moderate energy | C4: Crushing, spraying | D4: 1 | E4: 2.5 | G4: 3 | H4: Square | I4: =C_HD1*C_HD1 -> 0.034225
A5: 4 | B5: Into turbulent air with high energy | C5: Cutting, abrasive blasting, grinding | D5: 2.5 | E5: 10 | G5: 4 | H5: Rectangle | I5: =C_HD1*C_HD2 -> 0.030525 | K5: MECD | L5: 193
